Workbook

Sheet Sheet1
B1: Public Counsel Proposed REC Revenue Rebate Allocation | J1: Dockets UE-140188 & UG-140189
J2: Exhibit No. LF-4
B3: Inputs
D4: TOTAL | E4: SCHEDULE 1 | F4: SCH. 11,12 | G4: SCH. 21,22 | H4: SCHEDULE 25 | I4: SCH. 30, 31, 32 | J4: SCH. 41-48 | K4: Source
B5: Total REC Revenue Rebate Amount | D5: 8788031 | K5: PC_DR_210 Attachment A
B6: Total Generation Percentage | D6: =SUM(E6:J6) -> 1 | E6: 0.4444639648 | F6: 0.09544284772 | G6: 0.2527970003 | H6: 0.180766294 | I6: 0.02250187788 | J6: 0.00402801531 | K6: S01 Allocator (Production Plant)
B7: Annual Load | D7: =SUM(E7:J7) -> 5571472367 | E7: 2352011939 | F7: 557353354 | G7: 1424373231 | H7: 1080448696 | I7: 131638818 | J7: 25646329 | K7: Ehrbar Workpapers
B8: Total Bills | D8: =SUM(E8:J8) -> 2843797 | E8: 2437081 | F8: 351975 | G8: 25427 | H8: 252 | I8: 29062 | K8: Ehrbar Workpapers
B9: Annual Revenue | D9: =SUM(E9:J9) -> 480926000 | E9: =207184000 -> 207184000 | F9: =66064000 -> 66064000 | G9: =127734000 -> 127734000 | H9: =62262000 -> 62262000 | I9: =10811000 -> 10811000 | J9: =6871000 -> 6871000 | K9: Ehrbar Exhibit No. PDE-4
B11: Overall Annual Rebate Reduction | D11: =D30/D9 -> 0.01216412917
E13: RESIDENTIAL | F13: GENERAL SVC. | G13: LG. GEN. SVC. | H13: EX LG GEN SVC | I13: PUMPING | J13: ST & AREA LTG
D14: TOTAL | E14: SCHEDULE 1 | F14: SCH. 11,12 | G14: SCH. 21,22 | H14: SCHEDULE 25 | I14: SCH. 30, 31, 32 | J14: SCH. 41-48
B15: Generation Allocated
B16: Annual REC Revenue Rebate Amount | D16: =SUM(E16:J16) -> 5864762.648 | E16: =E7*E17 -> 2587213.133 | F16: 557353.354 | G16: 1495591.893 | H16: 1058839.722 | I16: 142169.9234 | J16: 23594.62268
B17: Cents Per kWh Rate | E17: =ROUND(E39,5) -> 0.0011 | F17: =ROUND(F39,5) -> 0.001 | G17: 0.00105 | H17: 0.00098 | I17: 0.00108 | J17: 0.00092
B18: Avg Monthly Credit Per Customer | E18: =(E7/E8)*E17 -> 1.061603259 | F18: =(F7/F8)*F17 -> 1.583502675 | G18: =(G7/G8)*G17 -> 58.81904639 | H18: =(H7/H8)*H17 -> 4201.74493 | I18: =(I7/I8)*I17 -> 4.891952496
B19: Avg Annual Credit Per Customer | E19: =(E7/(E8/12))*E17 -> 12.73923911 | F19: =(F7/(F8/12))*F17 -> 19.0020321 | G19: =(G7/(G8/12))*G17 -> 705.8285567 | H19: =(H7/(H8/12))*H17 -> 50420.93916 | I19: =(I7/(I8/12))*I17 -> 58.70342995
B20: Avg Total Credit Per Customer (18 Months) | E20: =18*E18 -> 19.10885867 | F20: =18*F18 -> 28.50304815 | G20: =18*G18 -> 1058.742835 | H20: 75631.40874 | I20: 88.05514493
B22: Uniform Percentage
B23: Annual REC Revenue Rebate Amount | D23: =SUM(E23:J23) -> 5850045.986 | E23: =E9*$D$11 -> 2520212.938 | F23: 803611.0296 | G23: 1553772.876 | H23: 757363.0104 | I23: 131506.4005 | J23: 83579.73153
B24: Cents Per kWh Rate | E24: =ROUND(E23/E7,5) -> 0.00107 | F24: =ROUND(F23/F7,5) -> 0.00144 | G24: 0.00109 | H24: =ROUND(H23/H7,5) -> 0.0007 | I24: =ROUND(I23/I7,5) -> 0.001 | J24: =ROUND(J23/J7,5) -> 0.00326
B25: Avg Monthly Credit Per Customer | E25: =(E7/E8)*E24 -> 1.032650443 | F25: =(F7/F8)*F24 -> 2.280243852 | G25: =(G7/G8)*G24 -> 61.05977197 | H25: =(H7/H8)*H24 -> 3001.246379 | I25: =(I7/I8)*I24 -> 4.529585644
B26: Avg Annual Credit Per Customer | E26: =(E7/(E8/12))*E24 -> 12.39180532 | F26: =(F7/(F8/12))*F24 -> 27.36292622 | G26: =(G7/(G8/12))*G24 -> 732.7172636 | H26: =(H7/(H8/12))*H24 -> 36014.95654 | I26: =(I7/(I8/12))*I24 -> 54.35502773
B27: Avg Total Credit Per Customer (18 Months) | E27: =E25*18 -> 18.58770798 | F27: =F25*18 -> 41.04438933 | G27: 1099.075895 | H27: 54022.43482 | I27: 81.5325416 | J27: 0
B29: Company Proposed
B30: Annual REC Revenue Rebate Amount | D30: =SUM(E30:J30) -> 5850045.986 | E30: =E7*E31 -> 2469612.536 | F30: 585221.0217 | G30: 1495591.893 | H30: 1134471.131 | I30: 138220.7589 | J30: 26928.64545
B31: Cents Per kWh Rate | E31: =ROUND($D$37/$D$38,5) -> 0.00105 | F31: =ROUND($D$37/$D$38,5) -> 0.00105 | G31: 0.00105 | H31: 0.00105 | I31: 0.00105 | J31: 0.00105
B32: Avg Monthly Credit Per Customer | E32: =(E7/E8)*E31 -> 1.013348566 | F32: =(F7/F8)*F31 -> 1.662677809 | G32: =(G7/G8)*G31 -> 58.81904639 | H32: =(H7/H8)*H31 -> 4501.869568 | I32: =(I7/I8)*I31 -> 4.756064927
B33: Avg Annual Credit Per Customer | E33: =(E7/(E8/12))*E31 -> 12.16018279 | F33: =(F7/(F8/12))*F31 -> 19.9521337 | G33: =(G7/(G8/12))*G31 -> 705.8285567 | H33: =(H7/(H8/12))*H31 -> 54022.43482 | I33: =(I7/(I8/12))*I31 -> 57.07277912
B34: Avg Total Credit Per Customer (18 Months) | E34: =E32*18 -> 18.24027418 | F34: =F32*18 -> 29.92820056 | G34: 1058.742835 | H34: 81033.65222 | I34: 85.60916868 | J34: 0
B36: Generation Allocated Rate Calculation
B37: REC Revenue Available for Refund | D37: =SUM(E37:J37) -> 8788031 | E37: =E6*$D$5 -> 3905963.101 | F37: 838754.7045 | G37: 2221587.876 | H37: 1588579.795 | I37: 197747.2004 | J37: 35398.32341
B38: Load Forecast (18 Months) | D38: =SUM(E38:J38) -> 8347293890 | E38: 3563388464 | F38: 836891898 | G38: 2109870302 | H38: 1615235839 | I38: 183456283 | J38: 38451104
B39: Cents Per kWh Rate | E39: =E37/E38 -> 0.001096137326 | F39: =F37/F38 -> 0.001002225863 | G39: 0.001052949972 | H39: 0.0009834971196 | I39: 0.001077898217 | J39: 0.0009206061654
B42: Source: Avista's Response to Public Counsel Data Request 219, Attachment A.

Sheet Sheet2

Sheet Sheet3
